[Event "*** SCC Grand Prix: Titled Tuesday Blitz"]
[Site "Chess.com"]
[Date "2020.09.29"]
[Round "1"]
[White "ZarinaShafigullina"]
[Black "sofaceindisguise"]
[Result "0-1"]
[WhiteElo "2367"]
[BlackElo "2707"]
[TimeControl "180+1"]
[EndTime "10:09:11 PDT"]
[Termination "sofaceindisguise won on time"]

1. d4 {[%clk 0:03:00.9]} 1... Nf6 {[%clk 0:02:59.6]} 2. Nf3 {[%clk 0:02:59.1]}
2... g6 {[%clk 0:02:59.8]} 3. g3 {[%clk 0:02:58.5]} 3... Bg7 {[%clk 0:03:00.3]}
4. Bg2 {[%clk 0:02:59.1]} 4... O-O {[%clk 0:03:01.1]} 5. O-O {[%clk 0:02:59.7]}
5... d6 {[%clk 0:03:01.7]} 6. c4 {[%clk 0:03:00.4]} 6... c6 {[%clk 0:03:02.1]}
7. Nc3 {[%clk 0:03:00.7]} 7... Qa5 {[%clk 0:03:02.7]} 8. e4 {[%clk 0:02:59.7]}
8... Bg4 {[%clk 0:02:59.9]} 9. Be3 {[%clk 0:02:58.4]} 9... Nbd7 {[%clk
0:02:59.2]} 10. Qb3 {[%clk 0:02:54.7]} 10... Bxf3 {[%clk 0:02:53.4]} 11. Bxf3
{[%clk 0:02:54.2]} 11... Rab8 {[%clk 0:02:54]} 12. h3 {[%clk 0:02:47.3]} 12...
Ne8 {[%clk 0:02:41.1]} 13. Bg2 {[%clk 0:02:44.2]} 13... Nc7 {[%clk 0:02:37.2]}
14. f4 {[%clk 0:02:40]} 14... Ne6 {[%clk 0:02:21.7]} 15. Rad1 {[%clk 0:02:38.2]}
15... c5 {[%clk 0:02:21.8]} 16. d5 {[%clk 0:02:33.7]} 16... Nd4 {[%clk
0:02:20.7]} 17. Bxd4 {[%clk 0:02:13.3]} 17... cxd4 {[%clk 0:02:19.8]} 18. Nb5
{[%clk 0:01:41]} 18... Nc5 {[%clk 0:02:17.6]} 19. Qa3 {[%clk 0:01:40.5]} 19...
Qxa3 {[%clk 0:02:17.1]} 20. Nxa3 {[%clk 0:01:40.2]} 20... a6 {[%clk 0:02:12.3]}
21. b4 {[%clk 0:01:36.3]} 21... Na4 {[%clk 0:02:11.4]} 22. Nc2 {[%clk 0:01:36]}
22... Nb2 {[%clk 0:02:09.1]} 23. Rd2 {[%clk 0:01:26.1]} 23... Nxc4 {[%clk
0:02:08.9]} 24. Rd3 {[%clk 0:01:26.4]} 24... Nb2 {[%clk 0:02:02.5]} 25. Rb3
{[%clk 0:01:13.8]} 25... d3 {[%clk 0:02:00.1]} 26. Ne3 {[%clk 0:01:13.7]} 26...
Rfc8 {[%clk 0:01:59.8]} 27. Kf2 {[%clk 0:01:09.7]} 27... b5 {[%clk 0:01:57.2]}
28. Rb1 {[%clk 0:01:07.6]} 28... Nc4 {[%clk 0:01:49.1]} 29. Rxd3 {[%clk
0:01:05.2]} 29... Nxe3 {[%clk 0:01:40.9]} 30. Kxe3 {[%clk 0:01:03.2]} 30... Rc2
{[%clk 0:01:41.2]} 31. Rd2 {[%clk 0:01:00.3]} 31... Rbc8 {[%clk 0:01:41.3]} 32.
Bf1 {[%clk 0:00:46.3]} 32... R8c3+ {[%clk 0:01:37.1]} 33. Bd3 {[%clk 0:00:44.9]}
33... Rxd2 {[%clk 0:01:28.1]} 34. Kxd2 {[%clk 0:00:44.1]} 34... Ra3 {[%clk
0:01:29]} 35. Rc1 {[%clk 0:00:34.6]} 35... Rxa2+ {[%clk 0:01:28.6]} 36. Ke3
{[%clk 0:00:34.6]} 36... Ra4 {[%clk 0:01:21.9]} 37. Rc8+ {[%clk 0:00:34]} 37...
Bf8 {[%clk 0:01:22.1]} 38. Ra8 {[%clk 0:00:29.9]} 38... Kg7 {[%clk 0:01:04.1]}
39. e5 {[%clk 0:00:29.2]} 39... dxe5 {[%clk 0:01:01.2]} 40. fxe5 {[%clk
0:00:29.1]} 40... f6 {[%clk 0:00:53.6]} 41. e6 {[%clk 0:00:26.2]} 41... f5
{[%clk 0:00:51.8]} 42. Bc2 {[%clk 0:00:14.3]} 42... Rxb4 {[%clk 0:00:51]} 43.
Rxa6 {[%clk 0:00:13.9]} 43... Kf6 {[%clk 0:00:51.5]} 44. Ra8 {[%clk 0:00:12.3]}
44... Bh6+ {[%clk 0:00:51.9]} 45. Ke2 {[%clk 0:00:11.2]} 45... Rb2 {[%clk
0:00:51.8]} 46. Kd3 {[%clk 0:00:10.4]} 46... Bg7 {[%clk 0:00:49]} 47. Re8 {[%clk
0:00:08.5]} 47... h5 {[%clk 0:00:46]} 48. d6 {[%clk 0:00:08.4]} 48... exd6
{[%clk 0:00:42.6]} 49. e7 {[%clk 0:00:08.7]} 49... Kf7 {[%clk 0:00:41.6]} 50.
Rg8 {[%clk 0:00:08.9]} 50... Kxe7 {[%clk 0:00:36.1]} 51. Rxg7+ {[%clk
0:00:09.1]} 51... Kf6 {[%clk 0:00:37]} 52. Rb7 {[%clk 0:00:09]} 52... Rb4 {[%clk
0:00:34.3]} 53. Kc3 {[%clk 0:00:07.9]} 53... Rc4+ {[%clk 0:00:33]} 54. Kd3
{[%clk 0:00:07.7]} 54... Rc5 {[%clk 0:00:32.6]} 55. Bb3 {[%clk 0:00:07]} 55...
Kg5 {[%clk 0:00:31.4]} 56. Bf7 {[%clk 0:00:05.9]} 56... Kf6 {[%clk 0:00:31.2]}
57. Be8 {[%clk 0:00:05.7]} 57... Rd5+ {[%clk 0:00:24.2]} 58. Ke3 {[%clk
0:00:06]} 58... Rc5 {[%clk 0:00:23.8]} 59. Kf3 {[%clk 0:00:05.2]} 59... Rc3+
{[%clk 0:00:24.2]} 60. Kf2 {[%clk 0:00:05]} 60... Rc2+ {[%clk 0:00:24.6]} 61.
Ke3 {[%clk 0:00:04.7]} 61... g5 {[%clk 0:00:23.9]} 62. Bxb5 {[%clk 0:00:03.3]}
62... g4 {[%clk 0:00:22.8]} 63. hxg4 {[%clk 0:00:03]} 63... hxg4 {[%clk
0:00:23.7]} 64. Bd3 {[%clk 0:00:02.6]} 64... Rg2 {[%clk 0:00:22.5]} 65. Rb6
{[%clk 0:00:01.8]} 65... Rxg3+ {[%clk 0:00:22.4]} 66. Kd2 {[%clk 0:00:01.4]}
66... Ke5 {[%clk 0:00:21.1]} 67. Rb5+ {[%clk 0:00:01.2]} 67... d5 {[%clk
0:00:21.5]} 68. Rb7 {[%clk 0:00:01.3]} 68... Kd4 {[%clk 0:00:18.7]} 69. Bxf5
{[%clk 0:00:01.5]} 69... Rg2+ {[%clk 0:00:18.5]} 70. Ke1 {[%clk 0:00:01.9]}
70... g3 {[%clk 0:00:18.6]} 71. Bg4 {[%clk 0:00:01.5]} 71... Ra2 {[%clk
0:00:18]} 72. Be2 {[%clk 0:00:01.2]} 72... g2 {[%clk 0:00:16.5]} 73. Rg7 {[%clk
0:00:01.2]} 73... Ke3 {[%clk 0:00:16.7]} 74. Rg3+ {[%clk 0:00:01]} 74... Kf4
{[%clk 0:00:17]} 75. Rxg2 {[%clk 0:00:01.4]} 75... d4 {[%clk 0:00:17.5]} 76.
Rf2+ {[%clk 0:00:01.5]} 76... Ke4 {[%clk 0:00:17.6]} 77. Rf3 {[%clk 0:00:01.5]}
77... Ra1+ {[%clk 0:00:16.4]} 0-1

[Event "*** SCC Grand Prix: Titled Tuesday Blitz"]
[Site "Chess.com"]
[Date "2020.09.29"]
[Round "1"]
[White "Steven_Rojas"]
[Black "denispopov"]
[Result "0-1"]
[WhiteElo "2449"]
[BlackElo "1959"]
[TimeControl "180+1"]
[EndTime "10:09:13 PDT"]
[Termination "denispopov won by checkmate"]

1. d4 {[%clk 0:02:58.2]} 1... Nf6 {[%clk 0:02:55]} 2. c4 {[%clk 0:02:55]} 2...
g6 {[%clk 0:02:55.1]} 3. Nc3 {[%clk 0:02:54.2]} 3... d5 {[%clk 0:02:54.9]} 4.
cxd5 {[%clk 0:02:49.6]} 4... Nxd5 {[%clk 0:02:55.8]} 5. e4 {[%clk 0:02:49.8]}
5... Nxc3 {[%clk 0:02:55.6]} 6. bxc3 {[%clk 0:02:50.7]} 6... Bg7 {[%clk
0:02:56.1]} 7. Bg5 {[%clk 0:02:51.3]} 7... O-O {[%clk 0:02:56.2]} 8. Nf3 {[%clk
0:02:42.5]} 8... c5 {[%clk 0:02:53.6]} 9. Be2 {[%clk 0:02:34.5]} 9... cxd4
{[%clk 0:02:45.4]} 10. cxd4 {[%clk 0:02:34.3]} 10... Bg4 {[%clk 0:02:45.3]} 11.
O-O {[%clk 0:02:24.6]} 11... Bxf3 {[%clk 0:02:38.9]} 12. Bxf3 {[%clk 0:02:19.3]}
12... Bxd4 {[%clk 0:02:22.3]} 13. Rb1 {[%clk 0:02:15.1]} 13... Qd7 {[%clk
0:01:29.2]} 14. Qb3 {[%clk 0:01:34.2]} 14... Nc6 {[%clk 0:01:12]} 15. Qxb7
{[%clk 0:01:32.5]} 15... Rfd8 {[%clk 0:00:57.5]} 16. Rfd1 {[%clk 0:00:59.9]}
16... Rac8 {[%clk 0:00:43]} 17. h3 {[%clk 0:00:43.8]} 17... f6 {[%clk
0:00:33.9]} 18. Qb3+ {[%clk 0:00:38.2]} 18... Kg7 {[%clk 0:00:31.3]} 19. Be3
{[%clk 0:00:38.8]} 19... Qc7 {[%clk 0:00:22.5]} 20. Rbc1 {[%clk 0:00:35.5]}
20... Bxe3 {[%clk 0:00:20.3]} 21. Qxe3 {[%clk 0:00:36.4]} 21... Rxd1+ {[%clk
0:00:18.9]} 22. Rxd1 {[%clk 0:00:36.1]} 22... Rd8 {[%clk 0:00:17.1]} 23. Rc1
{[%clk 0:00:36.1]} 23... Qd6 {[%clk 0:00:15.4]} 24. g3 {[%clk 0:00:26.8]} 24...
a5 {[%clk 0:00:15.4]} 25. Rc5 {[%clk 0:00:25]} 25... Ne5 {[%clk 0:00:13.3]} 26.
Be2 {[%clk 0:00:24.8]} 26... a4 {[%clk 0:00:12.1]} 27. f4 {[%clk 0:00:22.3]}
27... Qd2 {[%clk 0:00:11.2]} 28. Kf2 {[%clk 0:00:19.3]} 28... Nd3+ {[%clk
0:00:09.6]} 29. Kf3 {[%clk 0:00:12]} 29... Qxe3+ {[%clk 0:00:09.9]} 30. Kxe3
{[%clk 0:00:12.8]} 30... Nxc5 {[%clk 0:00:10.8]} 31. Bc4 {[%clk 0:00:13.5]}
31... e5 {[%clk 0:00:09.8]} 32. h4 {[%clk 0:00:13.3]} 32... a3 {[%clk
0:00:10.1]} 33. h5 {[%clk 0:00:13.1]} 33... Rd4 {[%clk 0:00:10.3]} 34. Bd5
{[%clk 0:00:12.7]} 34... Rb4 {[%clk 0:00:09.4]} 35. hxg6 {[%clk 0:00:12.3]}
35... hxg6 {[%clk 0:00:09.3]} 36. fxe5 {[%clk 0:00:12.9]} 36... fxe5 {[%clk
0:00:10.2]} 37. Kf3 {[%clk 0:00:13.3]} 37... Rb2 {[%clk 0:00:10.3]} 38. Ke3
{[%clk 0:00:13.7]} 38... Na4 {[%clk 0:00:03.8]} 39. Kd3 {[%clk 0:00:14.6]} 39...
Nc5+ {[%clk 0:00:03.8]} 40. Ke3 {[%clk 0:00:14.6]} 40... Nd7 {[%clk 0:00:04.3]}
41. Kd3 {[%clk 0:00:15.5]} 41... Nb6 {[%clk 0:00:04.9]} 42. Be6 {[%clk 0:00:15]}
42... Rb5 {[%clk 0:00:04.6]} 43. Kc3 {[%clk 0:00:14.3]} 43... Rc5+ {[%clk
0:00:05]} 44. Kb4 {[%clk 0:00:14.3]} 44... Rc6 {[%clk 0:00:05.9]} 45. Bb3 {[%clk
0:00:13.8]} 45... Rd6 {[%clk 0:00:06.3]} 46. Kxa3 {[%clk 0:00:13.7]} 46... Rd4
{[%clk 0:00:07.2]} 47. Bc2 {[%clk 0:00:14.2]} 47... Nd7 {[%clk 0:00:07.4]} 48.
Kb3 {[%clk 0:00:14.4]} 48... Nf6 {[%clk 0:00:08.3]} 49. a4 {[%clk 0:00:14]}
49... Nxe4 {[%clk 0:00:09.2]} 50. a5 {[%clk 0:00:14.7]} 50... Nd2+ {[%clk
0:00:08.2]} 51. Kc3 {[%clk 0:00:15.6]} 51... Ne4+ {[%clk 0:00:08.1]} 52. Kb3
{[%clk 0:00:15.7]} 52... Nd6 {[%clk 0:00:09]} 53. Kc3 {[%clk 0:00:16.6]} 53...
Nb5+ {[%clk 0:00:08.9]} 54. Kb3 {[%clk 0:00:17.5]} 54... Na7 {[%clk 0:00:09.6]}
55. Kc3 {[%clk 0:00:17.4]} 55... g5 {[%clk 0:00:09.7]} 56. Bf5 {[%clk
0:00:16.5]} 56... g4 {[%clk 0:00:10.6]} 57. a6 {[%clk 0:00:15.1]} 57... Kf6
{[%clk 0:00:10.9]} 58. Bd3 {[%clk 0:00:15.5]} 58... Ke7 {[%clk 0:00:11.5]} 59.
Be2 {[%clk 0:00:15.7]} 59... Kd6 {[%clk 0:00:12.2]} 60. Bxg4 {[%clk 0:00:15.6]}
60... Kc5 {[%clk 0:00:13.1]} 61. Be2 {[%clk 0:00:16.5]} 61... Kb6 {[%clk
0:00:13.3]} 62. g4 {[%clk 0:00:17]} 62... Nb5+ {[%clk 0:00:13.6]} 63. Kb3 {[%clk
0:00:17.6]} 63... Kxa6 {[%clk 0:00:13.4]} 64. g5 {[%clk 0:00:18.2]} 64... Rd6
{[%clk 0:00:11.6]} 65. Kb4 {[%clk 0:00:18]} 65... Rb6 {[%clk 0:00:11.1]} 66. Kc5
{[%clk 0:00:18.5]} 66... Ka5 {[%clk 0:00:10.4]} 67. g6 {[%clk 0:00:18.9]} 67...
Rxg6 {[%clk 0:00:07.4]} 68. Bxb5 {[%clk 0:00:18.8]} 68... e4 {[%clk 0:00:07.7]}
69. Bc4 {[%clk 0:00:13.9]} 69... e3 {[%clk 0:00:06.2]} 70. Kd4 {[%clk 0:00:06]}
70... Rg4+ {[%clk 0:00:06.1]} 71. Kd3 {[%clk 0:00:06.2]} 71... Rxc4 {[%clk
0:00:06.3]} 72. Kxe3 {[%clk 0:00:06.7]} 72... Rb4 {[%clk 0:00:06.6]} 73. Kd3
{[%clk 0:00:07.6]} 73... Kb5 {[%clk 0:00:07.5]} 74. Ke3 {[%clk 0:00:08.5]} 74...
Rc4 {[%clk 0:00:08.4]} 75. Kd3 {[%clk 0:00:09.4]} 75... Kc5 {[%clk 0:00:09.3]}
76. Ke3 {[%clk 0:00:10.3]} 76... Rd4 {[%clk 0:00:10.2]} 77. Kf3 {[%clk
0:00:10.6]} 77... Kd5 {[%clk 0:00:11.1]} 78. Ke3 {[%clk 0:00:11.5]} 78... Ke5
{[%clk 0:00:10.9]} 79. Kf3 {[%clk 0:00:12.4]} 79... Re4 {[%clk 0:00:11.8]} 80.
Kg3 {[%clk 0:00:12.7]} 80... Rf4 {[%clk 0:00:12.3]} 81. Kg2 {[%clk 0:00:13.1]}
81... Ke4 {[%clk 0:00:12.6]} 82. Kg3 {[%clk 0:00:14]} 82... Ke3 {[%clk
0:00:13.2]} 83. Kg2 {[%clk 0:00:14.9]} 83... Rf3 {[%clk 0:00:13.7]} 84. Kh2
{[%clk 0:00:15.3]} 84... Kf4 {[%clk 0:00:13.1]} 85. Kg2 {[%clk 0:00:16.2]} 85...
Kg4 {[%clk 0:00:14]} 86. Kh2 {[%clk 0:00:16.5]} 86... Rg3 {[%clk 0:00:14]} 87.
Kh1 {[%clk 0:00:17.3]} 87... Kf3 {[%clk 0:00:14.2]} 88. Kh2 {[%clk 0:00:18.2]}
88... Kf2 {[%clk 0:00:14]} 89. Kh1 {[%clk 0:00:18.5]} 89... Rh3# {[%clk
0:00:14.9]} 0-1

[Event "*** SCC Grand Prix: Titled Tuesday Blitz"]
[Site "Chess.com"]
[Date "2020.09.29"]
[Round "1"]
[White "Godzillator"]
[Black "AndrewMaco"]
[Result "0-1"]
[WhiteElo "2343"]
[BlackElo "2663"]
[TimeControl "180+1"]
[EndTime "10:09:17 PDT"]
[Termination "AndrewMaco won by resignation"]

1. d4 {[%clk 0:03:00.9]} 1... Nf6 {[%clk 0:02:56.2]} 2. c4 {[%clk 0:03:01]} 2...
e6 {[%clk 0:02:52]} 3. Nc3 {[%clk 0:03:01.3]} 3... Bb4 {[%clk 0:02:42.6]} 4. Qc2
{[%clk 0:03:01.5]} 4... d5 {[%clk 0:02:41.8]} 5. cxd5 {[%clk 0:03:01.3]} 5...
Qxd5 {[%clk 0:02:42.7]} 6. Nf3 {[%clk 0:03:01.3]} 6... Qf5 {[%clk 0:02:39.3]} 7.
Qxf5 {[%clk 0:03:01]} 7... exf5 {[%clk 0:02:39.1]} 8. a3 {[%clk 0:03:01.9]} 8...
Bd6 {[%clk 0:02:38]} 9. Bg5 {[%clk 0:03:01.3]} 9... Nbd7 {[%clk 0:02:33.3]} 10.
e3 {[%clk 0:03:00.1]} 10... c6 {[%clk 0:02:32.7]} 11. Bd3 {[%clk 0:03:00]} 11...
h6 {[%clk 0:02:32]} 12. Bh4 {[%clk 0:02:57]} 12... g6 {[%clk 0:02:18]} 13. Bg3
{[%clk 0:02:56.4]} 13... Be7 {[%clk 0:02:05.6]} 14. Nd2 {[%clk 0:02:52.1]} 14...
Nh5 {[%clk 0:02:04.8]} 15. Bc7 {[%clk 0:02:47.3]} 15... Nb6 {[%clk 0:02:01]} 16.
Be2 {[%clk 0:02:46.7]} 16... Nf6 {[%clk 0:02:00.1]} 17. Be5 {[%clk 0:02:45]}
17... Be6 {[%clk 0:01:59.5]} 18. O-O {[%clk 0:02:42.4]} 18... O-O {[%clk
0:01:59]} 19. Rfc1 {[%clk 0:02:42.2]} 19... a5 {[%clk 0:01:53.6]} 20. h3 {[%clk
0:02:41]} 20... Rfe8 {[%clk 0:01:53.3]} 21. Kf1 {[%clk 0:02:26.2]} 21... a4
{[%clk 0:01:45.7]} 22. Bc7 {[%clk 0:02:25.3]} 22... Nbd5 {[%clk 0:01:45.5]} 23.
Be5 {[%clk 0:02:20.5]} 23... Nd7 {[%clk 0:01:41.5]} 24. Nxd5 {[%clk 0:02:09.7]}
24... Bxd5 {[%clk 0:01:42.4]} 25. Bh2 {[%clk 0:02:08.2]} 25... Bf8 {[%clk
0:01:31.2]} 26. Nc4 {[%clk 0:02:08.1]} 26... h5 {[%clk 0:01:24]} 27. Nd6 {[%clk
0:02:07.7]} 27... Bxd6 {[%clk 0:01:23.3]} 28. Bxd6 {[%clk 0:02:07.7]} 28... Nf6
{[%clk 0:01:19.5]} 29. Be5 {[%clk 0:01:54.7]} 29... Nd7 {[%clk 0:01:19.3]} 30.
Bg3 {[%clk 0:01:53.4]} 30... Re6 {[%clk 0:01:18.8]} 31. Bc4 {[%clk 0:01:52.6]}
31... Nb6 {[%clk 0:01:14.8]} 32. Bxd5 {[%clk 0:01:51.9]} 32... Nxd5 {[%clk
0:01:15.7]} 33. Rc4 {[%clk 0:01:49.1]} 33... f6 {[%clk 0:01:02.8]} 34. Rac1
{[%clk 0:01:48.6]} 34... Kf7 {[%clk 0:01:02.5]} 35. Bh2 {[%clk 0:01:43.7]} 35...
g5 {[%clk 0:01:01.3]} 36. Re1 {[%clk 0:01:36]} 36... Kg6 {[%clk 0:00:55]} 37.
Bg1 {[%clk 0:01:30.4]} 37... f4 {[%clk 0:00:44.9]} 38. e4 {[%clk 0:01:27.4]}
38... Rae8 {[%clk 0:00:38.1]} 39. f3 {[%clk 0:01:25.9]} 39... f5 {[%clk
0:00:37.2]} 40. e5 {[%clk 0:01:22.3]} 40... Ra8 {[%clk 0:00:29.4]} 41. Rec1
{[%clk 0:01:18.6]} 41... g4 {[%clk 0:00:26.2]} 42. Bf2 {[%clk 0:01:16.2]} 42...
g3 {[%clk 0:00:25.1]} 43. Bg1 {[%clk 0:01:15.7]} 43... h4 {[%clk 0:00:21.6]} 44.
R1c2 {[%clk 0:01:14.2]} 44... Kf7 {[%clk 0:00:21.3]} 45. Rc1 {[%clk 0:01:14]}
45... Re7 {[%clk 0:00:21.3]} 46. R1c2 {[%clk 0:01:13.9]} 46... Rd7 {[%clk
0:00:21.7]} 47. Rc1 {[%clk 0:01:12.1]} 47... Nc7 {[%clk 0:00:20.3]} 48. R1c2
{[%clk 0:01:01]} 48... Ne6 {[%clk 0:00:20.5]} 49. Ke2 {[%clk 0:00:54.6]} 49...
Rd5 {[%clk 0:00:16.5]} 50. Rb4 {[%clk 0:00:50.6]} 50... Ra7 {[%clk 0:00:15.3]}
51. Rbc4 {[%clk 0:00:41.7]} 51... Ke7 {[%clk 0:00:15.4]} 52. Rb4 {[%clk
0:00:41.6]} 52... Kd7 {[%clk 0:00:15.8]} 53. Rbc4 {[%clk 0:00:41.6]} 53... Kc7
{[%clk 0:00:16]} 54. Rc1 {[%clk 0:00:39.2]} 54... b5 {[%clk 0:00:15.5]} 55.
Rxc6+ {[%clk 0:00:38.7]} 55... Kd7 {[%clk 0:00:15.8]} 56. Rb6 {[%clk 0:00:37]}
56... Nxd4+ {[%clk 0:00:15.1]} 57. Bxd4 {[%clk 0:00:36.6]} 57... Rxd4 {[%clk
0:00:16]} 58. Rxb5 {[%clk 0:00:36]} 58... Ke7 {[%clk 0:00:14.5]} 59. Rd1 {[%clk
0:00:35.5]} 59... Rxd1 {[%clk 0:00:12.9]} 60. Kxd1 {[%clk 0:00:35.8]} 60... Ke6
{[%clk 0:00:13.8]} 61. Kc2 {[%clk 0:00:34.4]} 61... Rc7+ {[%clk 0:00:13.4]} 62.
Kd3 {[%clk 0:00:34.8]} 62... Rd7+ {[%clk 0:00:13.9]} 63. Ke2 {[%clk 0:00:34.6]}
63... Rd4 {[%clk 0:00:13.4]} 64. Ra5 {[%clk 0:00:34.2]} 64... Rc4 {[%clk
0:00:10.3]} 65. Kd2 {[%clk 0:00:34.3]} 65... Rd4+ {[%clk 0:00:10.1]} 66. Kc3
{[%clk 0:00:34.6]} 66... Rd1 {[%clk 0:00:09.9]} 67. Rxa4 {[%clk 0:00:34.5]}
67... Rg1 {[%clk 0:00:10]} 68. Rxf4 {[%clk 0:00:34]} 68... Rxg2 {[%clk 0:00:10]}
69. Rxh4 {[%clk 0:00:34]} 69... Kxe5 {[%clk 0:00:10.9]} 70. f4+ {[%clk
0:00:32.1]} 70... Ke4 {[%clk 0:00:11.1]} 71. a4 {[%clk 0:00:31.7]} 71... Rg1
{[%clk 0:00:11.4]} 72. Kd2 {[%clk 0:00:27.6]} 72... Ra1 {[%clk 0:00:11.2]} 73.
Rh8 {[%clk 0:00:23.7]} 73... g2 {[%clk 0:00:11.3]} 74. Rg8 {[%clk 0:00:24]}
74... g1=Q {[%clk 0:00:10.1]} 75. Rxg1 {[%clk 0:00:23.9]} 75... Rxg1 {[%clk
0:00:11]} 76. Kc3 {[%clk 0:00:24.1]} 76... Kxf4 {[%clk 0:00:10.9]} 77. b4 {[%clk
0:00:24]} 77... Ke4 {[%clk 0:00:11.2]} 78. Kc4 {[%clk 0:00:23.8]} 78... f4
{[%clk 0:00:11.6]} 79. a5 {[%clk 0:00:23.3]} 79... f3 {[%clk 0:00:11.7]} 80. b5
{[%clk 0:00:23.7]} 80... f2 {[%clk 0:00:11.9]} 81. Kc5 {[%clk 0:00:24.6]} 81...
f1=Q {[%clk 0:00:12.2]} 82. b6 {[%clk 0:00:25]} 82... Qf2+ {[%clk 0:00:12.3]}
83. Kc6 {[%clk 0:00:25.2]} 83... Rc1+ {[%clk 0:00:11.9]} 84. Kb7 {[%clk
0:00:25.3]} 84... Qf7+ {[%clk 0:00:11.7]} 85. Ka6 {[%clk 0:00:25.3]} 85... Qc4+
{[%clk 0:00:11.9]} 86. Kb7 {[%clk 0:00:25]} 86... Qc6+ {[%clk 0:00:12]} 87. Ka6
{[%clk 0:00:25.1]} 87... Ra1 {[%clk 0:00:11.2]} 88. h4 {[%clk 0:00:24.3]} 88...
Qa8+ {[%clk 0:00:11.1]} 89. Kb5 {[%clk 0:00:24]} 89... Rxa5+ {[%clk 0:00:10.8]}
90. Kc4 {[%clk 0:00:23.3]} 90... Qa6+ {[%clk 0:00:11]} 91. Kc3 {[%clk
0:00:23.1]} 91... Qxb6 {[%clk 0:00:11.3]} 92. h5 {[%clk 0:00:22.8]} 92... Qd4+
{[%clk 0:00:10.4]} 93. Kb3 {[%clk 0:00:21.9]} 93... Rb5+ {[%clk 0:00:11]} 94.
Ka3 {[%clk 0:00:21.5]} 94... Qb4+ {[%clk 0:00:10.7]} 0-1